Cogmind - Beta 10.1 @@@ ROGUE MODE // 2021.05.12 @ 09:52:04 Player: Farfid Result: Destroyed by as-26039 with Assembled Heavy Rifle Performance ------------- Evolutions (0) 0 Regions Visited (2) 400 Robots Destroyed (19) 95 Value Destroyed (174) 174 Prototype IDs (2) 40 Alien Tech Used (0) 0 Bonus (-15) -15 TOTAL SCORE: 694 Bonus ------- Friendly Fire -15 Cogmind --------- Core Integrity 0/250 Matter 280/300 Energy 125/125 System Corruption 4% Temperature Cool (0) Movement Rolling (100) Ox1 Location -10/Mines Parts ------- > --- POWER (1) -------- Light Ion Engine > --- PROPULSION (2) --- Wheel Compact Wheel > --- UTILITY (2) ------ High-capacity Storage Unit > --- WEAPON (2) ------- Assault Rifle Mini Grenade Launcher > --- INVENTORY (12) --- Light Nuclear Core Compact Wheel High-capacity Storage Unit High-capacity Battery (400) Light Armor Plating Datajack Peak State ------------ > --- POWER ------------ Improved Ion Engine > --- PROPULSION ------- Compact Wheel Compact Wheel > --- UTILITY ---------- Improved Heat Sink High-capacity Storage Unit > --- WEAPON ----------- Particle Gun Heavy Assault Rifle > --- INVENTORY -------- Light Nuclear Core Compact Wheel High-capacity Storage Unit High-capacity Battery Light Armor Plating Light Armor Plating Assault Rifle Assault Rifle Datajack [Rating: 13] Favorites ----------- Power Ion Engine Engine Ion Engine Propulsion Compact Wheel Wheel Compact Wheel Utility High-capacity Storage Unit Device Heat Sink Storage High-capacity Storage Unit Protection Light Armor Plating Weapon Assault Rifle Energy Gun EM Pulse Gun Ballistic Gun Assault Rifle Launcher Mini Grenade Launcher Build | -11 -10 -10 ------- Run | Scr Mat Min Slots Evolved . | . . . Power . | . . . Propulsion . | . . . Utility . | . . . Weapon . | . . . Parts Attached 23 | 6 3 14 Power 4 | 1 . 3 Engine 4 | 1 . 3 Core . | . . . Reactor . | . . . Propulsion 5 | 2 . 3 Treads . | . . . Leg . | . . . Wheel 5 | 2 . 3 Hover . | . . . Flight . | . . . Utility 6 | 1 3 2 Device 2 | . 1 1 Storage 3 | 1 2 . Processor . | . . . Hackware . | . . . Protection 1 | . . 1 Artifact . | . . . Weapon 8 | 2 . 6 Energy Gun 3 | 1 . 2 Energy Cannon . | . . . Ballistic Gun 4 | 1 . 3 Ballistic Cannon . | . . . Launcher 1 | . . 1 Special Weapon . | . . . Impact Weapon . | . . . Slashing Weapon . | . . . Piercing Weapon . | . . . Special Melee Weapon . | . . . Unidentified Prototypes . | . . . Parts Lost 11 | . . 11 Power 2 | . . 2 Propulsion 2 | . . 2 Utility 2 | . . 2 Weapon 5 | . . 5 Highest Loss Streak 7 | . . 7 Average Slot Usage (%) 94 | . 94 94 Engine 13 | . 14 12 Wheel 27 | . 28 26 Device 10 | . 9 11 Storage 14 | . 14 14 Energy Gun 12 | . 14 11 Ballistic Gun 14 | . 14 14 Naked Turns . | . . . Heaviest Build 47 | 13 42 47 Greatest Support 32 | 26 26 32 Greatest Overweight (x) 2 | . 1 2 Average Overweight (x) . | . . 1 Largest Inventory Capacity 12 | 6 12 12 Average Capacity 10 | 5 8 12 Most Carried 12 | 3 7 12 Average Carried 6 | 1 4 8 Final Capacity 12 | 6 12 12 Final Carried 6 | 2 6 6 Class Distribution -------------------- 95% | Mutant 4% | Scavenger-Mutant Dominant Class ---------------- Mutant | -10/Materials Mutant | -10/Mines Resources | -11 -10 -10 ----------- Run | Scr Mat Min Matter Collected 539 | 118 187 234 Remotely . | . . . Salvage Created 516 | . 151 365 Parts 21 | . 6 15 Haulers Intercepted . | . . . Recyclers Shooed 2 | . 1 1 Parts Field Recycled . | . . . Retrieved Matter . | . . . Parts Self-Destructed . | . . . Prevented . | . . . Kills | -11 -10 -10 ------- Run | Scr Mat Min Combat Hostiles Destroyed 15 | . 1 14 Melee 2 | . . 2 Guns 13 | . 1 12 Classes Destroyed 6 | . 3 3 Worker 1 | . . 1 Recycler 2 | . 1 1 Operator 1 | . 1 . Swarmer 3 | . . 3 Grunt 3 | . 1 2 Assembled 9 | . . 9 Best Kill Streak 6 | . 1 6 Combat Bots Only 6 | . 1 6 Max Kills in Single Turn 2 | . 1 2 Gunslinging 1 | . . 1 Exploded . | . . . Melee 1 | . . 1 Uniques/NPCs Destroyed . | . . . Combat | -11 -10 -10 -------- Run | Scr Mat Min Damage Taken 1235 | . 11 1224 Core 259 | . . 259 Absorbed by Shields . | . . . Core Remaining (%) 100 | 100 . . Volleys Fired 56 | . 7 49 Largest 2 | . 2 2 Hottest 105 | . 60 105 Shots Fired 103 | . 12 91 Gun 102 | . 12 90 Cannon . | . . . Launcher 1 | . . 1 Special . | . . . Kinetic 59 | . 5 54 Thermal 15 | . . 15 Explosive 1 | . . 1 Electromagnetic 28 | . 7 21 Robot Hit Streak 8 | . 4 8 Robot Miss Streak 4 | . 3 4 Penetration Max . | . . . Secondary Targets 3 | . . 3 Max Gunslinging Chain 1 | . . 1 Shots Hit Robots 64 | . 6 58 Core Hits 35 | . 3 32 Critical Hits 1 | . . 1 Critical Kills . | . . . Critical Parts Destroyed 1 | . . 1 Melee Attacks . | . . . Impact . | . . . Slashing . | . . . Piercing . | . . . Sneak Attacks . | . . . Combat Hostiles . | . . . Follow-up Attacks . | . . . Damage Inflicted 961 | . 64 897 Guns 888 | . 64 824 Cannons . | . . . Explosions 40 | . . 40 Melee . | . . . Ramming 33 | . . 33 Kinetic 512 | . . 512 Thermal 140 | . . 140 Explosive 40 | . . 40 Electromagnetic 236 | . 64 172 Impact . | . . . Slashing . | . . . Piercing . | . . . Highest Corruption 4 | . . 4 Average Corruption 4 | . . 4 Corruption Purged . | . . . Effects 2 | . . 2 Message Errors 1 | . . 1 Matter Fused 1 | . . 1 Overload Shots . | . . . Overflow Damage 1 | . . 1 Projectiles . | . . . Explosions . | . . . Melee 1 | . . 1 Knockbacks . | . . . Impact . | . . . Kinetic . | . . . Secondary . | . . . Self-Inflicted Damage 16 | . . 16 Shots . | . . . Rammed 6 | . . 6 Targets Rammed 6 | . . 6 Kicked . | . . . Crushed . | . . . Highest Temperature 150 | . . 150 Average Temperature 51 | . . 51 Received Heat Transfer 144 | . 6 138 Siege Activations . | . . . Robots Corrupted . | . . . Combat Hostiles . | . . . Parts Fried . | . . . Impact Corruptions 1 | . . 1 Robots Melted . | . . . Combat Hostiles . | . . . Parts Melted . | . . . Heat Transferred 333 | . . 333 Parts Sabotaged . | . . . Parts Stolen . | . . . Parts Stripped . | . . . Power Chain Reactions . | . . . Missiles Intercepted . | . . . Alert | -11 -10 -10 ------- Run | Scr Mat Min Peak Influence 154 | . 100 154 Initial 39 | . . 39 Average 75 | . 56 93 Maximum Alert Level . | . . . Low Security (%) 100 | 100 100 100 Level 1 . | . . . Level 2 . | . . . Level 3 . | . . . Level 4 . | . . . Level 5 . | . . . High Security . | . . . Max Security . | . . . Squads Dispatched 1 | . 1 . Investigation . | . . . Extermination . | . . . Reinforcement 1 | . 1 . Assault . | . . . Garrison . | . . . Intercept . | . . . Construction Impeded . | . . . Haulers Reinforced . | . . . Stealth | -11 -10 -10 --------- Run | Scr Mat Min Distress Signals . | . . . Communications Jammed . | . . . Distress Signals . | . . . Times Spotted 27 | . 7 20 Peak Tracking Total 8 | . 2 8 Tactical Retreats 2 | . . 2 Traps | -11 -10 -10 ------- Run | Scr Mat Min Traps Triggered . | . . . Indirectly . | . . . Trap Hack Attempts . | . . . Triggered . | . . . Disarmed . | . . . Reprogrammed . | . . . Reused . | . . . Traps Extracted . | . . . Installed . | . . . Triggered . | . . . Machines | -11 -10 -10 ---------- Run | Scr Mat Min Machines Disabled . | . . . Max in Single Turn . | . . . Machines Sabotaged . | . . . Garrisons Compromised . | . . . Overloaded Fab Kills . | . . . Fab Network Shutdowns . | . . . Hacking | -11 -10 -10 --------- Run | Scr Mat Min Machines Accessed 2 | . 2 . Terminals 2 | . 2 . Fabricators . | . . . Repair Stations . | . . . Recycling Units . | . . . Scanalyzers . | . . . Garrison Access . | . . . Total Hacks 5 | . 5 . Successful 2 | . 2 . Failed 3 | . 3 . Catastrophic 1 | . 1 . Database Lockouts . | . . . Manual 2 | . 2 . Terminals 5 | . 5 . Fabricators . | . . . Repair Stations . | . . . Recycling Units . | . . . Scanalyzers . | . . . Garrison Access . | . . . Terminal Hacks 2 | . 2 . Prototype ID Bank 1 | . 1 . Locate Traps 1 | . 1 . Fabricator Hacks . | . . . Repair Station Hacks . | . . . Recycling Unit Hacks . | . . . Scanalyzer . | . . . Garrison Access Hacks . | . . . Unauthorized Hacks . | . . . Terminals . | . . . Fabricators . | . . . Repair Stations . | . . . Recycling Units . | . . . Scanalyzers . | . . . Garrison Access . | . . . Data Cores Recovered . | . . . Used . | . . . Hacking Detections 2 | . 2 . Full Trace Events . | . . . Feedback Events . | . . . Feedback Blocked . | . . . Robot Schematics Acquired . | . . . Robots Built . | . . . Matter . | . . . Time . | . . . Total Robot Build Rating . | . . . Part Schematics Acquired . | . . . Parts Built . | . . . Matter . | . . . Time . | . . . Total Part Build Rating . | . . . Parts Repaired . | . . . Time . | . . . Parts Recycled . | . . . Recycled Matter . | . . . Retrieved Matter . | . . . Retrieved Components . | . . . Parts Scanalyzed . | . . . Part Schematics Acquired . | . . . Parts Damaged . | . . . Bothacking | -11 -10 -10 ------------ Run | Scr Mat Min Used RIF Installer . | . . . Robots Hacked . | . . . Non-combat . | . . . Combat . | . . . Robot Hacks Applied . | . . . Relay Couplers Released . | . . . Robots Rewired . | . . . Allies Hacked . | . . . Hacks Repelled . | . . . Allies | -11 -10 -10 -------- Run | Scr Mat Min Total Allies . | . . . Largest Group . | . . . Highest-Rated Group . | . . . Highest-Rated Ally . | . . . Total Orders . | . . . Ally Attacks . | . . . Total Damage . | . . . Kills . | . . . Allies Corrupted . | . . . Allies Melted . | . . . Intel | -11 -10 -10 ------- Run | Scr Mat Min Robot Analysis Total . | . . . Derelict Logs Recovered 2 | . . 2 Drone Launches . | . . . Drone Recoveries . | . . . Exploration | -11 -10 -10 ------------- Run | Scr Mat Min Turns Passed 929 | 39 358 532 Spaces Moved 634 | 33 271 330 Core 6 | 6 . . Treads . | . . . Legs . | . . . Wheels 628 | 27 271 330 Hover . | . . . Flight . | . . . Fastest Speed 50 | 50 90 100 Average Speed 97 | 85 94 101 Slowest Speed 120 | 100 100 120 Overloaded Moves . | . . . Propulsion Burnouts . | . . . Robots Hopped . | . . . Cave-ins Triggered . | . . . Exploration Rate (%) 35 | 3 42 60 Regions Visited 2 Branch Regions 1 Pre-discovered Areas . | . . . Known Exits Taken . | . . . Unknown Exits Taken 2 | 1 1 . Scrap Searched 2 | . . 2 Spaces Dug . | . . . Terrain Destroyed 12 | . . 12 Melee . | . . . Projectile . | . . . AOE 12 | . . 12 Terrain Rammed . | . . . Walls Destroyed . | . . . Machines Disabled . | . . . Actions | -11 -10 -10 --------- Run | Scr Mat Min Total 839 | 41 360 438 Wait 92 | . 72 20 Move 632 | 32 270 330 Hop . | . . . Pick Up 22 | 3 6 13 Fast Attach 8 | 5 . 3 Attach 13 | 1 1 11 Detach . | . . . Swap 2 | . 2 . Drop 8 | . 2 6 Fire 56 | . 7 49 Melee . | . . . Ram 6 | . . 6 Kick . | . . . Crush . | . . . Escape Stasis . | . . . Rewire . | . . . Trap . | . . . Miscellaneous . | . . . Route ------- -11/Scrapyard -10/Materials -10/Mines (discovered 1 exit: [*Mat]) History --------- Turn | Location | Event 18 | -11/Scrapyard | Discovered new exit (range 16) 40 | -11/Scrapyard | Entered Materials 166 | -10/Materials | Discovered new exit (range 13) 315 | -10/Materials | Build established: Mutant 398 | -10/Materials | Entered Mines 551 | -10/Mines | Learned Materials trap positions 642 | -10/Mines | Discovered new exit (range 8) 684 | -10/Mines | Joined a pair of Derelicts in attacking an 0b10 outpost 755 | -10/Mines | Assembled infested the area 760 | -10/Mines | Assisted by a Guerilla fighting off Assembled 814 | -10/Mines | Lost 3 parts (1n2w) 830 | -10/Mines | Core integrity fell below 50% 875 | -10/Mines | Core integrity fell below 20% 927 | -10/Mines | Lost 7 parts (1p1n2u3w) 930 | -10/Mines | Destroyed by as-26039 with Assembled Heavy Rifle Last Messages --------------- 00902_ R-06 Scavenger destroyed. 00903_ Acquired 12 matter. 00908_ Acquired Com. Wheel. 00909_ Dropped Com. Wheel. 00911_ Acquired 17 matter. 00912_ Acquired 3 matter. 00913_ R-06 Scavenger collects Carbon-fiber Leg. 00914_ K-01 Serf collects debris. 00915_ Acquired Mni. Grenade Launcher. 00916_ System corrupted: Matter fused (-10). 00918_ Acquired Lgt. Ion Engine. 00921_ K-01 Serf collects debris. 00922_ U-05 Engineer lays Concrete. 00923_ as-04070 sneak attacks. 00923_ R-06 Scavenger collects Particle Gun. 00925_ Acquired 20 matter. 00926_ R-06 Scavenger collects Terrain Scan Processor. 00928_ K-01 Serf collects debris. 00929_ as-04070 sneak attacks. 00929_ R-06 Scavenger destroyed. Map ----- +----------------------------------------------------+ | | | | | | | | | | | | | ???????????????????????????????????????######????? | | ?????????????????????#####????????????##"=%"##???? | | ???#######????######## ##???????????#|[= |!#???? | | ???# ##### ##??????????#|![ [|##### | | ???# ####???????##*%= ## | | ????# ## ##??????###++## | | #?????????## #### ## ##????## | | #??????????# #??## #### #????# | | #??????????# #???## #?## #????# # | | #???????#### #????## ## !##????# ## | | ????????# #?????## * #?????## ##? | | ????????# ####??????## ##??????## ##?? | | ????????# #??????????## ##???###### #??? | | ????????# #???????????# #????# ##??? | | ######### #???????????## ####?# #### ##???? | | #????????????# =%=### #?## #????? | | ###########?????????#### *%! !## ### ###??? | | ###????????????????## [= ## ## ##?? | | #????????????????# #?? | | # #????????????????# *@ #?? | | # #????????????????# *%= ####### ##?? | | ##?????????######## = = #####?##### ##??? | | #?????????# ### =#%%% ##% ####??#####???? | | #????????## # # *[##%###% ##?????????? | | ####??####% aa%%%k%% % #?????????? | | = =####### #?????????? | | #######????### # % #!#!# #### < #?????????? | | #????????????# ## # !# %# #?# #?????????? | | #????????????# # % *%=%=% % #??# #?????????? | | ##????????????# # %### # #???##?????????? | | ##???????????########### # #??????????????? | | ##?????????????????????## ###??????????????? | | ##????????????????????### # ??????????????? | | ##????????????????????? #######?????????????? | | #????????????????????? ???????????????????? | | #????????????????? ???????????????????? | | ## #??????????????? ???????????????????? | | ??# """ ???????????????? ???????????????????? | | ???# """ ???????????????# ???????????????????? | | ????# ""?????????????????## ???????????????????? | | ????? ??????????????????# ???????????????????? | | ?????? ?????????????????? #???????????????????? | | ?????????????????????????? ????????????????????? | | ??????????????????????????? ?????????????????????? | +----------------------------------------------------+ Best States ------------- Heat Dissipation 39 Energy Generation 12 Energy Capacity 265 Matter Stores 300 Matter Capacity 300 Sight Range 16 Terrain Scan Density 10 Armor Coverage 150 Evasion (%) 42 Item Schematics ----------------- None Robot Schematics ------------------ None Fabricated ------------ Nothing Alien Tech Used ----------------- None Achievements -------------- None Challenges ------------ None Game ------ Seed BeamAutogunNanoactuators Manual? 0 Play Time 00:16:24 Cumulative 223.0 hours Start 2021.05.12 @ 09:36:27 End 2021.05.12 @ 09:52:04 Sessions 1 Manual Loads 0 Difficulty Rogue Special Mode None Game No. 92 Rogue 92 Adventurer 0 Explorer 0 Win Type - Total 4 Types 4/0/0/0/0/0/0/0/0 Lore% 67 Gallery% 79 Achievement% 58 Wizard Run 0 Options --------- ASCII 0 Keyboard 0 Movement Mouse Keybinds 0 Fullscreen 2 Font 12/Smallcaps Map View 83x54 Tactical HUD 1 Map Filters NONE Filters NONE Steam X RUN: 44a4aa5b-4d23-43d9-b307-ea1e4527e757